[Event "Titled Tuesday Blitz November 01 Late 2022"]
[White "Boruchovsky, Avital"]
[Black "Pap, Gyula"]
[WhiteFideId "2800055"]
[BlackFideId "725323"]
[WhiteElo "2466"]
[BlackElo "2519"]
[Result "1-0"]
[Round "05"]
[TimeControl "180+1"]
[Date "2022.11.01"]
[WhiteClock "0:00:09"]
[BlackClock "0:00:02"]

1. e4 {[%clk 0:03:00]}  e5 {[%clk 0:03:00]} 2. Nc3 {[%clk 0:02:59]}  Nf6 {[%clk 0:03:00]} 3. f4 {[%clk 0:02:56]}  d5 {[%clk 0:02:59]} 4. fxe5 {[%clk 0:02:53]}  Nxe4 {[%clk 0:02:59]} 5. Qf3 {[%clk 0:02:52]}  Nxc3 {[%clk 0:02:59]} 6. bxc3 {[%clk 0:02:51]}  Be7 {[%clk 0:02:52]} 7. d4 {[%clk 0:02:51]}  O-O {[%clk 0:02:52]} 8. Bd3 {[%clk 0:02:41]}  c5 {[%clk 0:02:46]} 9. Qh5 {[%clk 0:02:21]}  g6 {[%clk 0:02:43]} 10. Qh6 {[%clk 0:02:21]}  c4 {[%clk 0:01:47]} 11. Be2 {[%clk 0:02:18]}  f6 {[%clk 0:01:47]} 12. Nf3 {[%clk 0:02:04]}  fxe5 {[%clk 0:01:42]} 13. Nxe5 {[%clk 0:02:03]}  Qe8 {[%clk 0:01:17]} 14. Bf4 {[%clk 0:01:51]}  Nc6 {[%clk 0:01:07]} 15. Bf3 {[%clk 0:01:23]}  Be6 {[%clk 0:01:05]} 16. O-O {[%clk 0:01:22]}  Bf6 {[%clk 0:00:56]} 17. Rae1 {[%clk 0:01:17]}  Nxe5 {[%clk 0:00:43]} 18. Bxe5 {[%clk 0:01:15]}  Bxe5 {[%clk 0:00:43]} 19. Rxe5 {[%clk 0:01:14]}  Qd7 {[%clk 0:00:44]} 20. Rfe1 {[%clk 0:00:50]}  Rae8 {[%clk 0:00:40]} 21. Qg5 {[%clk 0:00:39]}  Bf7 {[%clk 0:00:32]} 22. Re7 {[%clk 0:00:36]}  Qd6 {[%clk 0:00:17]} 23. h4 {[%clk 0:00:30]}  Kg7 {[%clk 0:00:10]} 24. Bxd5 {[%clk 0:00:20]}  h6 {[%clk 0:00:05]} 25. Qe5+ {[%clk 0:00:14]}  Qxe5 {[%clk 0:00:06]} 26. R1xe5 {[%clk 0:00:13]}  Rc8 {[%clk 0:00:02]} 27. Rxb7 {[%clk 0:00:11]}  Kf6 {[%clk 0:00:02]} 28. Rxa7 {[%clk 0:00:10]}  Be6 {[%clk 0:00:02]} 29. Rxe6+ {[%clk 0:00:09]} 1-0


[Site "https://www.chess.com"]

[Event "Titled Tuesday Blitz November 01 Late 2022"]
[White "Castella Garcia, Fausto"]
[Black "Floresvillar Gonzalez, Luis Migu"]
[WhiteFideId "3501922"]
[BlackFideId "5100542"]
[WhiteElo "2246"]
[BlackElo "2040"]
[Result "1-0"]
[Round "05"]
[TimeControl "180+1"]
[Date "2022.11.02"]
[WhiteClock "0:00:28"]
[BlackClock "0:00:01"]

1. e4 {[%clk 0:03:00]}  e6 {[%clk 0:02:59]} 2. Nf3 {[%clk 0:03:00]}  d5 {[%clk 0:02:57]} 3. e5 {[%clk 0:03:00]}  c5 {[%clk 0:02:56]} 4. b4 {[%clk 0:03:00]}  c4 {[%clk 0:02:52]} 5. c3 {[%clk 0:02:59]}  Nc6 {[%clk 0:02:48]} 6. d3 {[%clk 0:02:58]}  cxd3 {[%clk 0:02:46]} 7. Bxd3 {[%clk 0:02:58]}  a6 {[%clk 0:02:42]} 8. O-O {[%clk 0:02:56]}  Qc7 {[%clk 0:02:42]} 9. Bf4 {[%clk 0:02:53]}  Nge7 {[%clk 0:02:31]} 10. Re1 {[%clk 0:02:47]}  Ng6 {[%clk 0:02:16]} 11. Bg3 {[%clk 0:02:46]}  Be7 {[%clk 0:02:15]} 12. a4 {[%clk 0:02:45]}  Bd7 {[%clk 0:02:05]} 13. Na3 {[%clk 0:02:42]}  O-O {[%clk 0:01:57]} 14. h4 {[%clk 0:02:33]}  Rfc8 {[%clk 0:01:49]} 15. h5 {[%clk 0:02:32]}  Nf8 {[%clk 0:01:48]} 16. h6 {[%clk 0:02:32]}  g6 {[%clk 0:01:47]} 17. Nc2 {[%clk 0:02:21]}  Qd8 {[%clk 0:01:45]} 18. Rc1 {[%clk 0:02:11]}  f5 {[%clk 0:01:41]} 19. exf6 {[%clk 0:02:09]}  Bxf6 {[%clk 0:01:41]} 20. Ncd4 {[%clk 0:02:03]}  Nxd4 {[%clk 0:01:39]} 21. Nxd4 {[%clk 0:01:49]}  Bg5 {[%clk 0:00:57]} 22. f4 {[%clk 0:01:34]}  Bxh6 {[%clk 0:00:55]} 23. Nf3 {[%clk 0:01:32]}  Bg7 {[%clk 0:00:52]} 24. Ne5 {[%clk 0:01:32]}  b5 {[%clk 0:00:41]} 25. a5 {[%clk 0:01:26]}  Ra7 {[%clk 0:00:34]} 26. Bf2 {[%clk 0:01:22]}  Rb7 {[%clk 0:00:32]} 27. Bd4 {[%clk 0:01:23]}  Be8 {[%clk 0:00:29]} 28. Qg4 {[%clk 0:01:11]}  Bf7 {[%clk 0:00:25]} 29. Re3 {[%clk 0:00:57]}  Qe8 {[%clk 0:00:20]} 30. Rce1 {[%clk 0:00:56]}  Rbc7 {[%clk 0:00:19]} 31. Qh3 {[%clk 0:00:47]}  Rxc3 {[%clk 0:00:19]} 32. Bxc3 {[%clk 0:00:46]}  Rxc3 {[%clk 0:00:19]} 33. Nxf7 {[%clk 0:00:46]}  Qxf7 {[%clk 0:00:16]} 34. Bxg6 {[%clk 0:00:41]}  Qxg6 {[%clk 0:00:11]} 35. Rxc3 {[%clk 0:00:40]}  Bxc3 {[%clk 0:00:11]} 36. Qxc3 {[%clk 0:00:41]}  Kf7 {[%clk 0:00:06]} 37. Qc7+ {[%clk 0:00:39]}  Kg8 {[%clk 0:00:06]} 38. Qe5 {[%clk 0:00:33]}  Qg3 {[%clk 0:00:04]} 39. f5 {[%clk 0:00:31]}  Qxe5 {[%clk 0:00:01]} 40. Rxe5 {[%clk 0:00:31]}  exf5 {[%clk 0:00:01]} 41. Rxd5 {[%clk 0:00:28]} 1-0


[Site "https://www.chess.com"]

[Event "Titled Tuesday Blitz November 01 Late 2022"]
[White "Da Silva Junior, Sediney Mari"]
[Black "Itkis, Boris"]
[WhiteFideId "2132079"]
[BlackFideId "1209167"]
[WhiteElo "1996"]
[BlackElo "2232"]
[Result "1-0"]
[Round "05"]
[TimeControl "180+1"]
[Date "2022.11.02"]
[WhiteClock "0:01:34"]
[BlackClock "0:00:34"]

1. e4 {[%clk 0:02:57]}  e5 {[%clk 0:02:54]} 2. Nc3 {[%clk 0:02:57]}  Nf6 {[%clk 0:02:52]} 3. f4 {[%clk 0:02:56]}  d5 {[%clk 0:02:50]} 4. fxe5 {[%clk 0:02:56]}  Nxe4 {[%clk 0:02:50]} 5. d3 {[%clk 0:02:56]}  Nxc3 {[%clk 0:02:49]} 6. bxc3 {[%clk 0:02:55]}  c5 {[%clk 0:02:48]} 7. Nf3 {[%clk 0:02:54]}  Nc6 {[%clk 0:02:48]} 8. Be2 {[%clk 0:02:52]}  d4 {[%clk 0:02:49]} 9. cxd4 {[%clk 0:02:50]}  cxd4 {[%clk 0:02:50]} 10. O-O {[%clk 0:02:49]}  Be7 {[%clk 0:02:46]} 11. Qd2 {[%clk 0:02:48]}  Be6 {[%clk 0:02:42]} 12. a3 {[%clk 0:02:45]}  h6 {[%clk 0:02:38]} 13. Rb1 {[%clk 0:02:42]}  Qd7 {[%clk 0:02:37]} 14. c4 {[%clk 0:02:40]}  dxc3 {[%clk 0:02:36]} 15. Qxc3 {[%clk 0:02:39]}  Rd8 {[%clk 0:02:31]} 16. Be3 {[%clk 0:02:37]}  O-O {[%clk 0:02:31]} 17. d4 {[%clk 0:02:35]}  Bd5 {[%clk 0:02:26]} 18. Nd2 {[%clk 0:02:25]}  b6 {[%clk 0:02:22]} 19. Bf3 {[%clk 0:02:22]}  Rc8 {[%clk 0:02:17]} 20. Qb2 {[%clk 0:02:19]}  Rfd8 {[%clk 0:02:13]} 21. Rbc1 {[%clk 0:02:17]}  Na5 {[%clk 0:02:08]} 22. Rxc8 {[%clk 0:02:08]}  Rxc8 {[%clk 0:02:09]} 23. h3 {[%clk 0:02:09]}  Bxf3 {[%clk 0:02:03]} 24. Rxf3 {[%clk 0:02:10]}  Qd5 {[%clk 0:01:59]} 25. Rf1 {[%clk 0:02:06]}  Bg5 {[%clk 0:01:40]} 26. Bxg5 {[%clk 0:02:01]}  hxg5 {[%clk 0:01:41]} 27. Nf3 {[%clk 0:02:02]}  Nc4 {[%clk 0:01:39]} 28. Qb3 {[%clk 0:01:59]}  b5 {[%clk 0:01:28]} 29. a4 {[%clk 0:01:57]}  a6 {[%clk 0:01:09]} 30. axb5 {[%clk 0:01:53]}  axb5 {[%clk 0:01:10]} 31. Rb1 {[%clk 0:01:53]}  Rb8 {[%clk 0:01:09]} 32. Qd3 {[%clk 0:01:51]}  b4 {[%clk 0:00:55]} 33. Nxg5 {[%clk 0:01:49]}  g6 {[%clk 0:00:55]} 34. e6 {[%clk 0:01:36]}  f6 {[%clk 0:00:34]} 35. Qxg6+ {[%clk 0:01:34]} 1-0


[Site "https://www.chess.com"]

[Event "Titled Tuesday Blitz November 01 Late 2022"]
[White "Danielyan, Vahe"]
[Black "Poltorak, Sebastian"]
[WhiteFideId "13304828"]
[BlackFideId "1199498"]
[WhiteElo "2421"]
[BlackElo "2232"]
[Result "1-0"]
[Round "05"]
[TimeControl "180+1"]
[Date "2022.11.02"]
[WhiteClock "0:02:03"]
[BlackClock "0:00:15"]

1. Nf3 {[%clk 0:03:00]}  Nf6 {[%clk 0:02:59]} 2. c4 {[%clk 0:02:59]}  c5 {[%clk 0:02:55]} 3. Nc3 {[%clk 0:03:00]}  d5 {[%clk 0:02:55]} 4. cxd5 {[%clk 0:03:00]}  Nxd5 {[%clk 0:02:56]} 5. e4 {[%clk 0:03:00]}  Nb4 {[%clk 0:02:56]} 6. Bb5+ {[%clk 0:02:59]}  N8c6 {[%clk 0:02:50]} 7. O-O {[%clk 0:02:58]}  a6 {[%clk 0:02:48]} 8. Bxc6+ {[%clk 0:02:58]}  Nxc6 {[%clk 0:02:48]} 9. d3 {[%clk 0:02:58]}  Bg4 {[%clk 0:02:48]} 10. Be3 {[%clk 0:02:58]}  e6 {[%clk 0:02:39]} 11. h3 {[%clk 0:02:52]}  Bh5 {[%clk 0:02:31]} 12. Rc1 {[%clk 0:02:52]}  Rc8 {[%clk 0:02:25]} 13. g4 {[%clk 0:02:46]}  Bg6 {[%clk 0:02:23]} 14. Qa4 {[%clk 0:02:47]}  Be7 {[%clk 0:02:16]} 15. Rfd1 {[%clk 0:02:47]}  O-O {[%clk 0:02:11]} 16. d4 {[%clk 0:02:46]}  cxd4 {[%clk 0:02:09]} 17. Nxd4 {[%clk 0:02:47]}  Qc7 {[%clk 0:02:02]} 18. Nxc6 {[%clk 0:02:41]}  Qxc6 {[%clk 0:01:56]} 19. Qxc6 {[%clk 0:02:41]}  Rxc6 {[%clk 0:01:56]} 20. Rd7 {[%clk 0:02:40]}  Bf6 {[%clk 0:01:48]} 21. f3 {[%clk 0:02:39]}  b5 {[%clk 0:01:46]} 22. a3 {[%clk 0:02:38]}  h6 {[%clk 0:01:42]} 23. Bd4 {[%clk 0:02:34]}  Bg5 {[%clk 0:01:38]} 24. Rd1 {[%clk 0:02:33]}  Rfc8 {[%clk 0:01:35]} 25. Kf2 {[%clk 0:02:29]}  a5 {[%clk 0:01:19]} 26. Rb7 {[%clk 0:02:29]}  b4 {[%clk 0:01:09]} 27. axb4 {[%clk 0:02:30]}  axb4 {[%clk 0:01:10]} 28. Rxb4 {[%clk 0:02:31]}  Kh7 {[%clk 0:01:04]} 29. Ke2 {[%clk 0:02:28]}  Ra6 {[%clk 0:00:59]} 30. Be3 {[%clk 0:02:26]}  Bf6 {[%clk 0:00:57]} 31. Bd4 {[%clk 0:02:26]}  Bg5 {[%clk 0:00:55]} 32. Rb7 {[%clk 0:02:25]}  Rd8 {[%clk 0:00:49]} 33. Be3 {[%clk 0:02:21]}  Rxd1 {[%clk 0:00:39]} 34. Nxd1 {[%clk 0:02:21]}  Bf6 {[%clk 0:00:35]} 35. Nc3 {[%clk 0:02:20]}  Ra1 {[%clk 0:00:34]} 36. Bd2 {[%clk 0:02:20]}  Be5 {[%clk 0:00:31]} 37. h4 {[%clk 0:02:18]}  h5 {[%clk 0:00:31]} 38. g5 {[%clk 0:02:18]}  Rh1 {[%clk 0:00:30]} 39. f4 {[%clk 0:02:13]}  Rh2+ {[%clk 0:00:26]} 40. Kd1 {[%clk 0:02:12]}  Bxc3 {[%clk 0:00:26]} 41. Bxc3 {[%clk 0:02:13]}  Bxe4 {[%clk 0:00:20]} 42. Rxf7 {[%clk 0:02:12]}  Kg6 {[%clk 0:00:21]} 43. Rxg7+ {[%clk 0:02:12]}  Kf5 {[%clk 0:00:22]} 44. Rf7+ {[%clk 0:02:12]}  Kg4 {[%clk 0:00:21]} 45. Rf6 {[%clk 0:02:11]}  Kf3 {[%clk 0:00:21]} 46. Rxe6 {[%clk 0:02:07]}  Rh1+ {[%clk 0:00:20]} 47. Kd2 {[%clk 0:02:07]}  Rh2+ {[%clk 0:00:19]} 48. Kd1 {[%clk 0:02:07]}  Ke3 {[%clk 0:00:18]} 49. Rxe4+ {[%clk 0:02:05]}  Kxe4 {[%clk 0:00:18]} 50. g6 {[%clk 0:02:06]}  Kxf4 {[%clk 0:00:16]} 51. Bf6 {[%clk 0:02:03]}  Kf5 {[%clk 0:00:14]} 52. g7 {[%clk 0:02:02]}  Rg2 {[%clk 0:00:15]} 53. Bg5 {[%clk 0:02:03]} 1-0


[Site "https://www.chess.com"]

[Event "Titled Tuesday Blitz November 01 Late 2022"]
[White "Do Nascimento,Christian Almeida"]
[Black "Romero Ruscalleda, Josep"]
[WhiteFideId "2143801"]
[BlackFideId "2231859"]
[WhiteElo "2079"]
[BlackElo "2282"]
[Result "0-1"]
[Round "05"]
[TimeControl "180+1"]
[Date "2022.11.02"]
[WhiteClock "0:00:22"]
[BlackClock "0:00:46"]

1. d4 {[%clk 0:03:00]}  g6 {[%clk 0:03:00]} 2. e4 {[%clk 0:03:00]}  Bg7 {[%clk 0:03:01]} 3. Nc3 {[%clk 0:03:00]}  d6 {[%clk 0:03:01]} 4. Be3 {[%clk 0:02:59]}  a6 {[%clk 0:03:01]} 5. f3 {[%clk 0:02:58]}  b5 {[%clk 0:03:01]} 6. Qd2 {[%clk 0:02:58]}  Bb7 {[%clk 0:03:01]} 7. O-O-O {[%clk 0:02:57]}  Nd7 {[%clk 0:03:01]} 8. Kb1 {[%clk 0:02:56]}  Rc8 {[%clk 0:03:00]} 9. h4 {[%clk 0:02:56]}  h5 {[%clk 0:03:00]} 10. Nh3 {[%clk 0:02:55]}  c5 {[%clk 0:03:00]} 11. dxc5 {[%clk 0:02:55]}  Nxc5 {[%clk 0:03:00]} 12. Nd5 {[%clk 0:02:51]}  Nf6 {[%clk 0:02:53]} 13. Nxf6+ {[%clk 0:02:42]}  Bxf6 {[%clk 0:02:53]} 14. Bd4 {[%clk 0:02:36]}  Nd7 {[%clk 0:02:29]} 15. Bxf6 {[%clk 0:02:22]}  Nxf6 {[%clk 0:02:28]} 16. Bd3 {[%clk 0:02:21]}  Qc7 {[%clk 0:02:25]} 17. Rhe1 {[%clk 0:02:11]}  Nd7 {[%clk 0:02:24]} 18. f4 {[%clk 0:02:02]}  Nc5 {[%clk 0:02:08]} 19. e5 {[%clk 0:02:01]}  d5 {[%clk 0:02:05]} 20. Ng5 {[%clk 0:01:56]}  e6 {[%clk 0:01:55]} 21. Be2 {[%clk 0:01:54]}  Ne4 {[%clk 0:01:48]} 22. Nxe4 {[%clk 0:01:53]}  dxe4 {[%clk 0:01:48]} 23. g4 {[%clk 0:01:46]}  hxg4 {[%clk 0:01:44]} 24. Bxg4 {[%clk 0:01:46]}  Rxh4 {[%clk 0:01:43]} 25. Qe2 {[%clk 0:00:56]}  Bd5 {[%clk 0:01:32]} 26. Rxd5 {[%clk 0:00:53]}  exd5 {[%clk 0:01:31]} 27. Bxc8 {[%clk 0:00:51]}  Qxc8 {[%clk 0:01:32]} 28. Rd1 {[%clk 0:00:52]}  Rxf4 {[%clk 0:01:26]} 29. Rxd5 {[%clk 0:00:51]}  Qc4 {[%clk 0:01:22]} 30. Qxc4 {[%clk 0:00:40]}  bxc4 {[%clk 0:01:21]} 31. Kc1 {[%clk 0:00:40]}  e3 {[%clk 0:01:17]} 32. Kd1 {[%clk 0:00:38]}  Rf2 {[%clk 0:01:06]} 33. Rc5 {[%clk 0:00:29]}  Rd2+ {[%clk 0:01:01]} 34. Kc1 {[%clk 0:00:27]}  Rd4 {[%clk 0:01:01]} 35. e6 {[%clk 0:00:25]}  f5 {[%clk 0:01:00]} 36. Re5 {[%clk 0:00:24]}  f4 {[%clk 0:00:59]} 37. c3 {[%clk 0:00:23]}  Rd3 {[%clk 0:00:55]} 38. Re4 {[%clk 0:00:24]}  g5 {[%clk 0:00:54]} 39. Kc2 {[%clk 0:00:24]}  Rd2+ {[%clk 0:00:53]} 40. Kc1 {[%clk 0:00:24]}  Rf2 {[%clk 0:00:52]} 41. Rxc4 {[%clk 0:00:22]}  g4 {[%clk 0:00:46]} 0-1


[Site "https://www.chess.com"]

[Event "Titled Tuesday Blitz November 01 Late 2022"]
[White "Faizrakhmanov, Ramil"]
[Black "Miszler, Levente"]
[WhiteFideId "24103209"]
[BlackFideId "763276"]
[WhiteElo "2421"]
[BlackElo "2176"]
[Result "1-0"]
[Round "05"]
[TimeControl "180+1"]
[Date "2022.11.02"]
[WhiteClock "0:00:09"]
[BlackClock "0:00:07"]

1. d4 {[%clk 0:03:00]}  Nf6 {[%clk 0:02:59]} 2. c4 {[%clk 0:03:01]}  e6 {[%clk 0:02:58]} 3. Nf3 {[%clk 0:03:01]}  b6 {[%clk 0:02:58]} 4. g3 {[%clk 0:03:00]}  Bb7 {[%clk 0:02:58]} 5. Bg2 {[%clk 0:03:00]}  Be7 {[%clk 0:02:55]} 6. O-O {[%clk 0:03:00]}  O-O {[%clk 0:02:56]} 7. Nc3 {[%clk 0:03:00]}  Ne4 {[%clk 0:02:56]} 8. Bd2 {[%clk 0:03:00]}  Nxc3 {[%clk 0:02:52]} 9. Bxc3 {[%clk 0:03:00]}  d6 {[%clk 0:02:50]} 10. Qc2 {[%clk 0:02:57]}  c5 {[%clk 0:02:47]} 11. Ng5 {[%clk 0:02:52]}  Bxg5 {[%clk 0:02:39]} 12. Bxb7 {[%clk 0:02:52]}  Nd7 {[%clk 0:02:39]} 13. Bxa8 {[%clk 0:02:52]}  Qxa8 {[%clk 0:02:40]} 14. Rad1 {[%clk 0:02:52]}  Be7 {[%clk 0:02:38]} 15. dxc5 {[%clk 0:02:48]}  Nxc5 {[%clk 0:02:39]} 16. Bb4 {[%clk 0:02:47]}  Rc8 {[%clk 0:02:35]} 17. Bxc5 {[%clk 0:02:45]}  Rxc5 {[%clk 0:02:36]} 18. Qd3 {[%clk 0:02:42]}  g6 {[%clk 0:02:34]} 19. b3 {[%clk 0:02:42]}  Rh5 {[%clk 0:02:32]} 20. Qf3 {[%clk 0:02:42]}  Qc8 {[%clk 0:02:27]} 21. Rd3 {[%clk 0:02:40]}  Qc5 {[%clk 0:02:26]} 22. Rfd1 {[%clk 0:02:38]}  Qa3 {[%clk 0:02:25]} 23. R3d2 {[%clk 0:02:33]}  Qc5 {[%clk 0:02:23]} 24. e3 {[%clk 0:02:32]}  Rf5 {[%clk 0:02:17]} 25. Qb7 {[%clk 0:02:30]}  Bf8 {[%clk 0:02:00]} 26. Qxa7 {[%clk 0:02:28]}  h5 {[%clk 0:01:57]} 27. Qa8 {[%clk 0:02:19]}  Kg7 {[%clk 0:01:54]} 28. Qe4 {[%clk 0:02:18]}  Qa5 {[%clk 0:01:49]} 29. h4 {[%clk 0:02:13]}  Re5 {[%clk 0:01:48]} 30. Qd4 {[%clk 0:02:11]}  Kg8 {[%clk 0:01:47]} 31. Kg2 {[%clk 0:02:05]}  Rf5 {[%clk 0:01:42]} 32. Qe4 {[%clk 0:02:03]}  Qc5 {[%clk 0:01:35]} 33. Rd4 {[%clk 0:01:55]}  Qa5 {[%clk 0:01:27]} 34. R1d2 {[%clk 0:01:53]}  Qc3 {[%clk 0:01:27]} 35. Qd3 {[%clk 0:01:49]}  Qa5 {[%clk 0:01:25]} 36. e4 {[%clk 0:01:39]}  Re5 {[%clk 0:01:20]} 37. f4 {[%clk 0:01:37]}  Rc5 {[%clk 0:01:19]} 38. Qe2 {[%clk 0:01:19]}  Qc3 {[%clk 0:01:16]} 39. Qf3 {[%clk 0:01:17]}  Qa1 {[%clk 0:01:13]} 40. R4d3 {[%clk 0:01:12]}  Ra5 {[%clk 0:01:11]} 41. a4 {[%clk 0:01:12]}  Qf6 {[%clk 0:00:54]} 42. Qe3 {[%clk 0:01:08]}  Qd8 {[%clk 0:00:50]} 43. e5 {[%clk 0:01:06]}  d5 {[%clk 0:00:50]} 44. cxd5 {[%clk 0:01:05]}  exd5 {[%clk 0:00:50]} 45. Qf3 {[%clk 0:01:03]}  Qc8 {[%clk 0:00:37]} 46. Rxd5 {[%clk 0:01:00]}  Qc1 {[%clk 0:00:33]} 47. Qd1 {[%clk 0:00:38]}  Qc3 {[%clk 0:00:31]} 48. Rxa5 {[%clk 0:00:36]}  bxa5 {[%clk 0:00:30]} 49. Rd8 {[%clk 0:00:35]}  Kg7 {[%clk 0:00:28]} 50. Rd7 {[%clk 0:00:32]}  Bc5 {[%clk 0:00:20]} 51. e6 {[%clk 0:00:21]}  Qe3 {[%clk 0:00:20]} 52. exf7 {[%clk 0:00:11]}  Qf2+ {[%clk 0:00:11]} 53. Kh3 {[%clk 0:00:09]}  Qe3 {[%clk 0:00:12]} 54. f8=Q+ {[%clk 0:00:08]}  Kxf8 {[%clk 0:00:11]} 55. Rd8+ {[%clk 0:00:09]}  Kf7 {[%clk 0:00:11]} 56. Qd5+ {[%clk 0:00:09]}  Kg7 {[%clk 0:00:07]} 57. Qe5+ {[%clk 0:00:09]} 1-0


[Site "https://www.chess.com"]

[Event "Titled Tuesday Blitz November 01 Late 2022"]
[White "Gareyev, Timur"]
[Black "Zierk, Steven"]
[WhiteFideId "14200937"]
[BlackFideId "2034255"]
[WhiteElo "2552"]
[BlackElo "2494"]
[Result "0-1"]
[Round "05"]
[TimeControl "180+1"]
[Date "2022.11.01"]
[WhiteClock "0:00:01"]
[BlackClock "0:00:05"]

1. d4 {[%clk 0:03:00]}  d5 {[%clk 0:02:56]} 2. c4 {[%clk 0:03:00]}  dxc4 {[%clk 0:02:56]} 3. Nf3 {[%clk 0:02:59]}  Nf6 {[%clk 0:02:56]} 4. Nc3 {[%clk 0:02:52]}  a6 {[%clk 0:02:56]} 5. e4 {[%clk 0:02:52]}  b5 {[%clk 0:02:56]} 6. e5 {[%clk 0:02:52]}  Nd5 {[%clk 0:02:56]} 7. a4 {[%clk 0:02:52]}  e6 {[%clk 0:02:51]} 8. axb5 {[%clk 0:02:51]}  Nb6 {[%clk 0:02:52]} 9. Be2 {[%clk 0:02:41]}  Bb7 {[%clk 0:02:45]} 10. Be3 {[%clk 0:02:34]}  Bb4 {[%clk 0:02:38]} 11. bxa6 {[%clk 0:02:32]}  Rxa6 {[%clk 0:02:37]} 12. Rxa6 {[%clk 0:02:28]}  Nxa6 {[%clk 0:02:37]} 13. O-O {[%clk 0:02:25]}  O-O {[%clk 0:02:33]} 14. Qc2 {[%clk 0:02:20]}  Be7 {[%clk 0:02:29]} 15. Ra1 {[%clk 0:02:04]}  Nb4 {[%clk 0:02:27]} 16. Qd2 {[%clk 0:02:04]}  Qd7 {[%clk 0:02:15]} 17. Ra7 {[%clk 0:01:59]}  Qc6 {[%clk 0:01:47]} 18. h3 {[%clk 0:01:41]}  Ra8 {[%clk 0:01:44]} 19. Rxa8+ {[%clk 0:01:41]}  Bxa8 {[%clk 0:01:44]} 20. Bg5 {[%clk 0:01:39]}  Bf8 {[%clk 0:01:43]} 21. Ne1 {[%clk 0:01:19]}  Qd7 {[%clk 0:01:39]} 22. Bf3 {[%clk 0:01:18]}  Bxf3 {[%clk 0:01:35]} 23. Nxf3 {[%clk 0:01:19]}  h6 {[%clk 0:01:34]} 24. Be3 {[%clk 0:01:15]}  N6d5 {[%clk 0:01:25]} 25. Kh2 {[%clk 0:01:11]}  Qc6 {[%clk 0:01:22]} 26. Ne1 {[%clk 0:01:08]}  Nxc3 {[%clk 0:01:17]} 27. Qxc3 {[%clk 0:00:49]}  Nd5 {[%clk 0:01:11]} 28. Qc2 {[%clk 0:00:48]}  Qb5 {[%clk 0:01:01]} 29. Nf3 {[%clk 0:00:47]}  Nb4 {[%clk 0:00:58]} 30. Qe4 {[%clk 0:00:17]}  Nd3 {[%clk 0:00:51]} 31. Bd2 {[%clk 0:00:16]}  c6 {[%clk 0:00:33]} 32. Bc3 {[%clk 0:00:16]}  Nxf2 {[%clk 0:00:32]} 33. Qe2 {[%clk 0:00:11]}  Nd3 {[%clk 0:00:32]} 34. Ne1 {[%clk 0:00:11]}  Nf4 {[%clk 0:00:28]} 35. Qd2 {[%clk 0:00:10]}  Nd5 {[%clk 0:00:27]} 36. Nc2 {[%clk 0:00:11]}  Be7 {[%clk 0:00:21]} 37. g3 {[%clk 0:00:07]}  Qb3 {[%clk 0:00:19]} 38. h4 {[%clk 0:00:04]}  c5 {[%clk 0:00:14]} 39. Ne3 {[%clk 0:00:03]}  Nxe3 {[%clk 0:00:13]} 40. Qxe3 {[%clk 0:00:03]}  Qc2+ {[%clk 0:00:12]} 41. Kh3 {[%clk 0:00:03]}  cxd4 {[%clk 0:00:06]} 42. Qxd4 {[%clk 0:00:04]}  Qf5+ {[%clk 0:00:06]} 43. Kg2 {[%clk 0:00:02]}  Qc2+ {[%clk 0:00:06]} 44. Kh3 {[%clk 0:00:02]}  Qd3 {[%clk 0:00:05]} 45. Kg2 {[%clk 0:00:01]}  Qe2+ {[%clk 0:00:05]} 46. Kh3 {[%clk 0:00:01]}  h5 {[%clk 0:00:04]} 47. Qf4 {[%clk 0:00:01]}  Bc5 {[%clk 0:00:04]} 48. g4 {[%clk 0:00:01]}  hxg4+ {[%clk 0:00:03]} 49. Qxg4 {[%clk 0:00:01]}  Qe3+ {[%clk 0:00:03]} 50. Kg2 {[%clk 0:00:02]}  Qf2+ {[%clk 0:00:03]} 51. Kh3 {[%clk 0:00:02]}  Qf1+ {[%clk 0:00:04]} 52. Qg2 {[%clk 0:00:02]}  Qf5+ {[%clk 0:00:04]} 53. Qg4 {[%clk 0:00:03]}  g6 {[%clk 0:00:05]} 54. Qxf5 {[%clk 0:00:01]}  exf5 {[%clk 0:00:05]} 55. Kg3 {[%clk 0:00:02]}  Kf8 {[%clk 0:00:06]} 56. Kf4 {[%clk 0:00:02]}  Ke7 {[%clk 0:00:07]} 57. h5 {[%clk 0:00:02]}  gxh5 {[%clk 0:00:06]} 58. Kxf5 {[%clk 0:00:02]}  Be3 {[%clk 0:00:07]} 59. Bb4+ {[%clk 0:00:01]}  Ke8 {[%clk 0:00:06]} 60. Bd6 {[%clk 0:00:01]}  h4 {[%clk 0:00:06]} 61. Kg4 {[%clk 0:00:01]}  Bf2 {[%clk 0:00:05]} 0-1


[Site "https://www.chess.com"]